[Event "Titled Tuesday Blitz April 05 Early 2022"]
[White "Tarigan, Gilbert Elroy"]
[Black "Chernov, Mikhail"]
[WhiteFideId "7108133"]
[BlackFideId "24143170"]
[WhiteElo "1908"]
[BlackElo "2189"]
[Result "1/2-1/2"]
[Round "01"]
[TimeControl "180+1"]
[Date "2022.04.05"]
[WhiteClock "0:00:04"]
[BlackClock "0:00:06"]

1. e4 {[%clk 0:02:55]}  c5 {[%clk 0:02:59]} 2. Nf3 {[%clk 0:02:55]}  Nc6 {[%clk 0:02:59]} 3. Bb5 {[%clk 0:02:53]}  g6 {[%clk 0:02:58]} 4. O-O {[%clk 0:02:53]}  Bg7 {[%clk 0:02:59]} 5. Nc3 {[%clk 0:02:53]}  e5 {[%clk 0:02:58]} 6. d3 {[%clk 0:02:51]}  Nge7 {[%clk 0:02:59]} 7. Nd5 {[%clk 0:02:49]}  O-O {[%clk 0:02:55]} 8. c3 {[%clk 0:02:49]}  d6 {[%clk 0:02:51]} 9. h3 {[%clk 0:02:48]}  Nxd5 {[%clk 0:02:50]} 10. exd5 {[%clk 0:02:48]}  Ne7 {[%clk 0:02:51]} 11. Bc4 {[%clk 0:02:44]}  h6 {[%clk 0:02:46]} 12. Re1 {[%clk 0:02:43]}  f5 {[%clk 0:02:43]} 13. a3 {[%clk 0:02:32]}  Bd7 {[%clk 0:02:38]} 14. b4 {[%clk 0:02:31]}  b6 {[%clk 0:02:33]} 15. Rb1 {[%clk 0:02:29]}  Kh7 {[%clk 0:02:27]} 16. Bd2 {[%clk 0:02:24]}  Rb8 {[%clk 0:02:26]} 17. a4 {[%clk 0:02:23]}  e4 {[%clk 0:02:04]} 18. dxe4 {[%clk 0:02:16]}  fxe4 {[%clk 0:02:05]} 19. Nh2 {[%clk 0:02:02]}  cxb4 {[%clk 0:01:46]} 20. cxb4 {[%clk 0:02:00]}  b5 {[%clk 0:01:39]} 21. axb5 {[%clk 0:01:42]}  Bxb5 {[%clk 0:01:40]} 22. Rxe4 {[%clk 0:01:35]}  Bxc4 {[%clk 0:01:37]} 23. Rxc4 {[%clk 0:01:36]}  Nxd5 {[%clk 0:01:37]} 24. Bxh6 {[%clk 0:01:23]}  Bxh6 {[%clk 0:01:33]} 25. Qxd5 {[%clk 0:01:22]}  Rc8 {[%clk 0:01:03]} 26. Ng4 {[%clk 0:01:14]}  Rxc4 {[%clk 0:01:02]} 27. Qxc4 {[%clk 0:01:15]}  Bg7 {[%clk 0:00:57]} 28. Rd1 {[%clk 0:01:10]}  Qb6 {[%clk 0:00:56]} 29. Ne3 {[%clk 0:01:06]}  Bh6 {[%clk 0:00:50]} 30. Qh4 {[%clk 0:00:58]}  Kg7 {[%clk 0:00:49]} 31. Nd5 {[%clk 0:00:40]}  Qc6 {[%clk 0:00:34]} 32. Qd4+ {[%clk 0:00:40]}  Kh7 {[%clk 0:00:30]} 33. Re1 {[%clk 0:00:30]}  Rf7 {[%clk 0:00:24]} 34. Nf6+ {[%clk 0:00:25]}  Kg7 {[%clk 0:00:18]} 35. Nd5+ {[%clk 0:00:20]}  Kh7 {[%clk 0:00:18]} 36. b5 {[%clk 0:00:20]}  Qc5 {[%clk 0:00:18]} 37. Qxc5 {[%clk 0:00:08]}  dxc5 {[%clk 0:00:19]} 38. Re6 {[%clk 0:00:07]}  Rb7 {[%clk 0:00:18]} 39. Rc6 {[%clk 0:00:02]}  Rxb5 {[%clk 0:00:17]} 40. Rc7+ {[%clk 0:00:03]}  Bg7 {[%clk 0:00:18]} 41. Rxa7 {[%clk 0:00:03]}  c4 {[%clk 0:00:18]} 42. Ne3 {[%clk 0:00:03]}  Rc5 {[%clk 0:00:17]} 43. Ra2 {[%clk 0:00:03]}  c3 {[%clk 0:00:15]} 44. Rc2 {[%clk 0:00:04]}  Bd4 {[%clk 0:00:12]} 45. g3 {[%clk 0:00:04]}  Kg7 {[%clk 0:00:13]} 46. Kg2 {[%clk 0:00:04]}  Kf6 {[%clk 0:00:13]} 47. Kf3 {[%clk 0:00:05]}  Ke5 {[%clk 0:00:14]} 48. Ke2 {[%clk 0:00:05]}  Ke4 {[%clk 0:00:14]} 49. f3+ {[%clk 0:00:05]}  Ke5 {[%clk 0:00:14]} 50. Kd3 {[%clk 0:00:06]}  g5 {[%clk 0:00:09]} 51. f4+ {[%clk 0:00:06]}  gxf4 {[%clk 0:00:09]} 52. gxf4+ {[%clk 0:00:06]}  Kxf4 {[%clk 0:00:06]} 53. Kxd4 {[%clk 0:00:07]}  Rc8 {[%clk 0:00:06]} 54. Nd5+ {[%clk 0:00:06]}  Kg3 {[%clk 0:00:06]} 55. Nxc3 {[%clk 0:00:06]}  Kxh3 {[%clk 0:00:07]} 56. Re2 {[%clk 0:00:06]}  Kg4 {[%clk 0:00:05]} 57. Ne4 {[%clk 0:00:05]}  Rd8+ {[%clk 0:00:05]} 58. Ke3 {[%clk 0:00:05]}  Re8 {[%clk 0:00:05]} 59. Rg2+ {[%clk 0:00:05]}  Kf5 {[%clk 0:00:05]} 60. Rg5+ {[%clk 0:00:06]}  Ke6 {[%clk 0:00:04]} 61. Ra5 {[%clk 0:00:06]}  Rb8 {[%clk 0:00:02]} 62. Nc5+ {[%clk 0:00:06]}  Kd6 {[%clk 0:00:03]} 63. Nd3 {[%clk 0:00:06]}  Kc6 {[%clk 0:00:03]} 64. Rc5+ {[%clk 0:00:05]}  Kb6 {[%clk 0:00:02]} 65. Rh5 {[%clk 0:00:06]}  Re8+ {[%clk 0:00:03]} 66. Kd4 {[%clk 0:00:07]}  Rd8+ {[%clk 0:00:03]} 67. Kc4 {[%clk 0:00:07]}  Rc8+ {[%clk 0:00:04]} 68. Kb4 {[%clk 0:00:08]}  Rg8 {[%clk 0:00:04]} 69. Ne5 {[%clk 0:00:08]}  Rg1 {[%clk 0:00:03]} 70. Rh6+ {[%clk 0:00:08]}  Kc7 {[%clk 0:00:04]} 71. Kc5 {[%clk 0:00:08]}  Rc1+ {[%clk 0:00:04]} 72. Kd5 {[%clk 0:00:08]}  Rd1+ {[%clk 0:00:04]} 73. Kc5 {[%clk 0:00:08]}  Rc1+ {[%clk 0:00:04]} 74. Nc4 {[%clk 0:00:09]}  Kd7 {[%clk 0:00:05]} 75. Rh3 {[%clk 0:00:07]}  Ke6 {[%clk 0:00:05]} 76. Re3+ {[%clk 0:00:07]}  Kf5 {[%clk 0:00:05]} 77. Re2 {[%clk 0:00:07]}  Kf4 {[%clk 0:00:05]} 78. Kd4 {[%clk 0:00:07]}  Rd1+ {[%clk 0:00:05]} 79. Nd2 {[%clk 0:00:07]}  Ra1 {[%clk 0:00:05]} 80. Rf2+ {[%clk 0:00:07]}  Kg5 {[%clk 0:00:05]} 81. Ne4+ {[%clk 0:00:07]}  Kg6 {[%clk 0:00:04]} 82. Rf6+ {[%clk 0:00:06]}  Kg7 {[%clk 0:00:04]} 83. Rb6 {[%clk 0:00:05]}  Ra4+ {[%clk 0:00:05]} 84. Ke5 {[%clk 0:00:06]}  Ra5+ {[%clk 0:00:05]} 85. Kf4 {[%clk 0:00:06]}  Kf7 {[%clk 0:00:05]} 86. Nd6+ {[%clk 0:00:06]}  Ke7 {[%clk 0:00:05]} 87. Nc4 {[%clk 0:00:03]}  Ra4 {[%clk 0:00:05]} 88. Rc6 {[%clk 0:00:03]}  Kd7 {[%clk 0:00:05]} 89. Rc5 {[%clk 0:00:04]}  Ke7 {[%clk 0:00:05]} 90. Kf5 {[%clk 0:00:04]}  Ra1 {[%clk 0:00:06]} 91. Rc7+ {[%clk 0:00:04]}  Kd8 {[%clk 0:00:07]} 92. Rh7 {[%clk 0:00:04]}  Re1 {[%clk 0:00:05]} 93. Ne5 {[%clk 0:00:03]}  Kc8 {[%clk 0:00:06]} 94. Ke6 {[%clk 0:00:04]}  Kb8 {[%clk 0:00:06]} 95. Kd6 {[%clk 0:00:04]}  Rd1+ {[%clk 0:00:06]} 96. Kc5 {[%clk 0:00:05]}  Rc1+ {[%clk 0:00:06]} 97. Nc4 {[%clk 0:00:05]}  Kc8 {[%clk 0:00:07]} 98. Rg7 {[%clk 0:00:04]}  Kd8 {[%clk 0:00:07]} 99. Kd6 {[%clk 0:00:05]}  Rd1+ {[%clk 0:00:07]} 100. Ke6 {[%clk 0:00:05]}  Kc8 {[%clk 0:00:08]} 101. Nd6+ {[%clk 0:00:05]}  Kb8 {[%clk 0:00:08]} 102. Rb7+ {[%clk 0:00:05]}  Ka8 {[%clk 0:00:09]} 103. Rb2 {[%clk 0:00:05]}  Rh1 {[%clk 0:00:08]} 104. Kd7 {[%clk 0:00:05]}  Rc1 {[%clk 0:00:07]} 105. Ne4 {[%clk 0:00:04]}  Ka7 {[%clk 0:00:06]} 1/2-1/2


[Site "https://www.chess.com"]

[Event "Titled Tuesday Blitz April 05 Early 2022"]
[White "Todorovic, Bojan"]
[Black "Shahaliyev, Ismayil"]
[WhiteFideId "917087"]
[BlackFideId "13406388"]
[WhiteElo "2266"]
[BlackElo "2105"]
[Result "0-1"]
[Round "01"]
[TimeControl "180+1"]
[Date "2022.04.05"]
[WhiteClock "0:00:11"]
[BlackClock "0:00:10"]

1. d4 {[%clk 0:02:59]}  Nf6 {[%clk 0:02:57]} 2. Bg5 {[%clk 0:02:56]}  Ne4 {[%clk 0:02:55]} 3. Bf4 {[%clk 0:02:56]}  c5 {[%clk 0:02:55]} 4. d5 {[%clk 0:02:55]}  Qb6 {[%clk 0:02:49]} 5. Bc1 {[%clk 0:02:54]}  e6 {[%clk 0:02:32]} 6. f3 {[%clk 0:02:48]}  Nf6 {[%clk 0:02:30]} 7. c4 {[%clk 0:02:42]}  exd5 {[%clk 0:02:09]} 8. cxd5 {[%clk 0:02:40]}  c4 {[%clk 0:02:08]} 9. Nc3 {[%clk 0:02:29]}  Bc5 {[%clk 0:02:07]} 10. Nh3 {[%clk 0:02:04]}  d6 {[%clk 0:02:06]} 11. Na4 {[%clk 0:02:01]}  Qa5+ {[%clk 0:02:06]} 12. Bd2 {[%clk 0:02:00]}  Bb4 {[%clk 0:02:06]} 13. Nc3 {[%clk 0:01:49]}  Bxh3 {[%clk 0:02:05]} 14. gxh3 {[%clk 0:01:48]}  Na6 {[%clk 0:01:50]} 15. Rg1 {[%clk 0:01:44]}  O-O {[%clk 0:01:35]} 16. a3 {[%clk 0:01:34]}  Bc5 {[%clk 0:01:25]} 17. Ne4 {[%clk 0:01:32]}  Nxe4 {[%clk 0:01:19]} 18. fxe4 {[%clk 0:01:28]}  Qb6 {[%clk 0:01:12]} 19. e3 {[%clk 0:01:23]}  Bxe3 {[%clk 0:01:07]} 20. Rg2 {[%clk 0:01:18]}  Rfe8 {[%clk 0:00:50]} 21. Bc3 {[%clk 0:01:17]}  Bh6 {[%clk 0:00:20]} 22. Qg4 {[%clk 0:00:39]}  Qe3+ {[%clk 0:00:17]} 23. Be2 {[%clk 0:00:39]}  Rxe4 {[%clk 0:00:15]} 24. Qh5 {[%clk 0:00:26]}  Nc5 {[%clk 0:00:13]} 25. Bd2 {[%clk 0:00:11]}  Nd3+ {[%clk 0:00:11]} 26. Kd1 {[%clk 0:00:11]}  Qxd2# {[%clk 0:00:10]} 0-1


[Site "https://www.chess.com"]

[Event "Titled Tuesday Blitz April 05 Early 2022"]
[White "Tregubov, Pavel V."]
[Black "Samaganova, Aleksandra"]
[WhiteFideId "4115341"]
[BlackFideId "13800221"]
[WhiteElo "2341"]
[BlackElo "1859"]
[Result "1-0"]
[Round "01"]
[TimeControl "180+1"]
[Date "2022.04.05"]
[WhiteClock "0:01:34"]
[BlackClock "0:00:06"]

1. e4 {[%clk 0:03:00]}  c5 {[%clk 0:02:58]} 2. Nf3 {[%clk 0:03:00]}  e6 {[%clk 0:02:59]} 3. c3 {[%clk 0:03:00]}  Nf6 {[%clk 0:02:54]} 4. e5 {[%clk 0:02:59]}  Nd5 {[%clk 0:02:52]} 5. d4 {[%clk 0:03:00]}  cxd4 {[%clk 0:02:52]} 6. cxd4 {[%clk 0:03:00]}  d6 {[%clk 0:02:52]} 7. Bc4 {[%clk 0:03:00]}  Nc6 {[%clk 0:02:40]} 8. O-O {[%clk 0:02:59]}  Be7 {[%clk 0:02:40]} 9. Qe2 {[%clk 0:02:59]}  O-O {[%clk 0:02:40]} 10. Rd1 {[%clk 0:03:00]}  a6 {[%clk 0:02:28]} 11. Bd2 {[%clk 0:02:55]}  b5 {[%clk 0:02:27]} 12. Bb3 {[%clk 0:02:36]}  Bb7 {[%clk 0:02:07]} 13. Nc3 {[%clk 0:02:36]}  Nxc3 {[%clk 0:01:56]} 14. Bxc3 {[%clk 0:02:35]}  d5 {[%clk 0:01:47]} 15. Bc2 {[%clk 0:02:20]}  b4 {[%clk 0:01:40]} 16. Bd2 {[%clk 0:02:18]}  a5 {[%clk 0:01:38]} 17. Qd3 {[%clk 0:02:18]}  g6 {[%clk 0:01:38]} 18. Bh6 {[%clk 0:02:18]}  Re8 {[%clk 0:01:38]} 19. Ba4 {[%clk 0:02:15]}  Rc8 {[%clk 0:01:15]} 20. Rac1 {[%clk 0:02:14]}  Bf8 {[%clk 0:01:01]} 21. Qe3 {[%clk 0:02:12]}  Bg7 {[%clk 0:00:55]} 22. h4 {[%clk 0:02:01]}  f6 {[%clk 0:00:36]} 23. Bxg7 {[%clk 0:01:56]}  Kxg7 {[%clk 0:00:36]} 24. exf6+ {[%clk 0:01:52]}  Qxf6 {[%clk 0:00:36]} 25. Ne5 {[%clk 0:01:47]}  Nxe5 {[%clk 0:00:16]} 26. dxe5 {[%clk 0:01:46]}  Qxh4 {[%clk 0:00:16]} 27. Bxe8 {[%clk 0:01:43]}  Rxe8 {[%clk 0:00:16]} 28. Rc7+ {[%clk 0:01:40]}  Re7 {[%clk 0:00:17]} 29. g3 {[%clk 0:01:36]}  d4 {[%clk 0:00:05]} 30. gxh4 {[%clk 0:01:35]}  dxe3 {[%clk 0:00:06]} 31. Rxe7+ {[%clk 0:01:34]} 1-0


[Site "https://www.chess.com"]

[Event "Titled Tuesday Blitz April 05 Early 2022"]
[White "Turner, Max N"]
[Black "Naroditsky, Daniel"]
[WhiteFideId "447722"]
[BlackFideId "2026961"]
[WhiteElo "2078"]
[BlackElo "2608"]
[Result "0-1"]
[Round "01"]
[TimeControl "180+1"]
[Date "2022.04.05"]
[WhiteClock "0:00:03"]
[BlackClock "0:00:16"]

1. d4 {[%clk 0:03:00]}  Nf6 {[%clk 0:02:57]} 2. c4 {[%clk 0:03:01]}  g6 {[%clk 0:02:56]} 3. g3 {[%clk 0:03:01]}  Bg7 {[%clk 0:02:56]} 4. Bg2 {[%clk 0:03:02]}  O-O {[%clk 0:02:57]} 5. Nc3 {[%clk 0:03:02]}  d6 {[%clk 0:02:54]} 6. Nf3 {[%clk 0:03:02]}  Nbd7 {[%clk 0:02:51]} 7. O-O {[%clk 0:03:03]}  e5 {[%clk 0:02:52]} 8. h3 {[%clk 0:03:03]}  c6 {[%clk 0:02:50]} 9. e4 {[%clk 0:03:01]}  Qa5 {[%clk 0:02:51]} 10. Qc2 {[%clk 0:02:55]}  exd4 {[%clk 0:02:48]} 11. Nxd4 {[%clk 0:02:55]}  Qc5 {[%clk 0:02:48]} 12. Nce2 {[%clk 0:02:52]}  Ne5 {[%clk 0:02:44]} 13. b3 {[%clk 0:02:45]}  d5 {[%clk 0:02:44]} 14. Be3 {[%clk 0:02:29]}  Qa5 {[%clk 0:02:21]} 15. f4 {[%clk 0:02:14]}  Ned7 {[%clk 0:02:21]} 16. cxd5 {[%clk 0:02:02]}  cxd5 {[%clk 0:02:22]} 17. e5 {[%clk 0:02:02]}  Ne4 {[%clk 0:02:22]} 18. Bxe4 {[%clk 0:01:55]}  dxe4 {[%clk 0:02:23]} 19. Qxe4 {[%clk 0:01:55]}  Nc5 {[%clk 0:02:15]} 20. Qg2 {[%clk 0:01:41]}  Bd7 {[%clk 0:02:14]} 21. a3 {[%clk 0:01:31]}  Qa6 {[%clk 0:02:14]} 22. Rfd1 {[%clk 0:01:22]}  Rac8 {[%clk 0:02:11]} 23. b4 {[%clk 0:01:16]}  Na4 {[%clk 0:02:08]} 24. Rac1 {[%clk 0:01:09]}  Nb2 {[%clk 0:02:05]} 25. Rxc8 {[%clk 0:00:39]}  Bxc8 {[%clk 0:01:52]} 26. Ra1 {[%clk 0:00:36]}  b6 {[%clk 0:01:43]} 27. b5 {[%clk 0:00:24]}  Qa5 {[%clk 0:01:35]} 28. Qd5 {[%clk 0:00:24]}  Qa4 {[%clk 0:01:14]} 29. Qb3 {[%clk 0:00:20]}  Qxb3 {[%clk 0:01:13]} 30. Nxb3 {[%clk 0:00:21]}  Bxh3 {[%clk 0:01:13]} 31. Rc1 {[%clk 0:00:17]}  Rc8 {[%clk 0:01:03]} 32. Rxc8+ {[%clk 0:00:16]}  Bxc8 {[%clk 0:01:04]} 33. Nbd4 {[%clk 0:00:17]}  Nc4 {[%clk 0:01:03]} 34. Bc1 {[%clk 0:00:16]}  Bf8 {[%clk 0:01:02]} 35. Nc6 {[%clk 0:00:16]}  a6 {[%clk 0:00:57]} 36. a4 {[%clk 0:00:13]}  axb5 {[%clk 0:00:54]} 37. axb5 {[%clk 0:00:14]}  Bc5+ {[%clk 0:00:52]} 38. Ned4 {[%clk 0:00:14]}  Bd7 {[%clk 0:00:48]} 39. Kf1 {[%clk 0:00:15]}  Bg4 {[%clk 0:00:34]} 40. Kf2 {[%clk 0:00:10]}  h5 {[%clk 0:00:33]} 41. Kf1 {[%clk 0:00:07]}  Kf8 {[%clk 0:00:32]} 42. Ne2 {[%clk 0:00:08]}  Ke8 {[%clk 0:00:29]} 43. Nc3 {[%clk 0:00:07]}  Bf3 {[%clk 0:00:26]} 44. Na7 {[%clk 0:00:03]}  Kd7 {[%clk 0:00:25]} 45. Nc6 {[%clk 0:00:02]}  Bxc6 {[%clk 0:00:25]} 46. bxc6+ {[%clk 0:00:03]}  Kxc6 {[%clk 0:00:26]} 47. Ke2 {[%clk 0:00:04]}  b5 {[%clk 0:00:26]} 48. Kd3 {[%clk 0:00:04]}  Be7 {[%clk 0:00:22]} 49. Ne4 {[%clk 0:00:05]}  Nb6 {[%clk 0:00:22]} 50. Be3 {[%clk 0:00:04]}  Nd5 {[%clk 0:00:23]} 51. Bd4 {[%clk 0:00:04]}  h4 {[%clk 0:00:22]} 52. gxh4 {[%clk 0:00:05]}  Nxf4+ {[%clk 0:00:23]} 53. Ke3 {[%clk 0:00:05]}  Nd5+ {[%clk 0:00:22]} 54. Kf3 {[%clk 0:00:06]}  Bxh4 {[%clk 0:00:22]} 55. Nd2 {[%clk 0:00:04]}  Be7 {[%clk 0:00:22]} 56. Ke4 {[%clk 0:00:04]}  Nc7 {[%clk 0:00:21]} 57. Nb3 {[%clk 0:00:04]}  Ne6 {[%clk 0:00:21]} 58. Bb2 {[%clk 0:00:03]}  Bd8 {[%clk 0:00:21]} 59. Bc3 {[%clk 0:00:03]}  Nc5+ {[%clk 0:00:20]} 60. Nxc5 {[%clk 0:00:02]}  Kxc5 {[%clk 0:00:21]} 61. Bb2 {[%clk 0:00:02]}  Kc4 {[%clk 0:00:21]} 62. Bd4 {[%clk 0:00:02]}  b4 {[%clk 0:00:20]} 63. Bb2 {[%clk 0:00:03]}  b3 {[%clk 0:00:21]} 64. e6 {[%clk 0:00:03]}  fxe6 {[%clk 0:00:21]} 65. Ke5 {[%clk 0:00:04]}  Ba5 {[%clk 0:00:22]} 66. Kxe6 {[%clk 0:00:04]}  Bc3 {[%clk 0:00:16]} 67. Bc1 {[%clk 0:00:04]}  Bd2 {[%clk 0:00:17]} 68. Bb2 {[%clk 0:00:04]}  Kd3 {[%clk 0:00:16]} 69. Kf6 {[%clk 0:00:03]}  Bc3+ {[%clk 0:00:16]} 0-1


[Site "https://www.chess.com"]

[Event "Titled Tuesday Blitz April 05 Early 2022"]
[White "Urbina Quiroz, Edwin"]
[Black "Manukyan, Sargis A."]
[WhiteFideId "6500650"]
[BlackFideId "13303970"]
[WhiteElo "2152"]
[BlackElo "2187"]
[Result "0-1"]
[Round "01"]
[TimeControl "180+1"]
[Date "2022.04.05"]
[WhiteClock "0:00:11"]
[BlackClock "0:00:34"]

1. e4 {[%clk 0:02:57]}  c5 {[%clk 0:02:55]} 2. Nf3 {[%clk 0:02:58]}  d6 {[%clk 0:02:52]} 3. d4 {[%clk 0:02:58]}  cxd4 {[%clk 0:02:53]} 4. Nxd4 {[%clk 0:02:59]}  Nf6 {[%clk 0:02:54]} 5. Nc3 {[%clk 0:02:59]}  g6 {[%clk 0:02:53]} 6. Be3 {[%clk 0:02:58]}  Bg7 {[%clk 0:02:46]} 7. f3 {[%clk 0:02:58]}  O-O {[%clk 0:02:44]} 8. Bc4 {[%clk 0:02:59]}  Nc6 {[%clk 0:02:38]} 9. h4 {[%clk 0:02:58]}  Bd7 {[%clk 0:02:37]} 10. h5 {[%clk 0:02:57]}  Rc8 {[%clk 0:02:35]} 11. Bb3 {[%clk 0:02:55]}  Nxd4 {[%clk 0:02:34]} 12. Bxd4 {[%clk 0:02:56]}  b5 {[%clk 0:02:34]} 13. hxg6 {[%clk 0:02:54]}  hxg6 {[%clk 0:02:34]} 14. Qd2 {[%clk 0:02:54]}  a5 {[%clk 0:02:31]} 15. Bxf6 {[%clk 0:02:51]}  exf6 {[%clk 0:02:32]} 16. O-O-O {[%clk 0:02:42]}  a4 {[%clk 0:02:31]} 17. Bd5 {[%clk 0:02:42]}  f5 {[%clk 0:02:29]} 18. Ne2 {[%clk 0:02:36]}  Qf6 {[%clk 0:02:25]} 19. Nd4 {[%clk 0:02:28]}  a3 {[%clk 0:02:16]} 20. b3 {[%clk 0:01:55]}  fxe4 {[%clk 0:01:59]} 21. fxe4 {[%clk 0:01:52]}  Bg4 {[%clk 0:02:00]} 22. Kb1 {[%clk 0:01:43]}  Bxd1 {[%clk 0:01:56]} 23. Rxd1 {[%clk 0:01:44]}  Rc5 {[%clk 0:01:53]} 24. c3 {[%clk 0:01:40]}  b4 {[%clk 0:01:52]} 25. cxb4 {[%clk 0:01:27]}  Rc7 {[%clk 0:01:51]} 26. b5 {[%clk 0:01:21]}  Rfc8 {[%clk 0:01:52]} 27. Bc6 {[%clk 0:01:21]}  Qe5 {[%clk 0:01:49]} 28. Qd3 {[%clk 0:01:16]}  Rb8 {[%clk 0:01:40]} 29. Qc4 {[%clk 0:01:15]}  Rcc8 {[%clk 0:01:28]} 30. Rf1 {[%clk 0:01:01]}  Rc7 {[%clk 0:01:19]} 31. Rd1 {[%clk 0:01:00]}  Qg3 {[%clk 0:01:00]} 32. Qe2 {[%clk 0:00:41]}  Qc3 {[%clk 0:00:58]} 33. Qd2 {[%clk 0:00:41]}  Qc5 {[%clk 0:00:47]} 34. Qd3 {[%clk 0:00:30]}  Qg5 {[%clk 0:00:42]} 35. Rd2 {[%clk 0:00:20]}  Qh4 {[%clk 0:00:38]} 36. Nf3 {[%clk 0:00:18]}  Qh1+ {[%clk 0:00:37]} 37. Rd1 {[%clk 0:00:11]}  Qxg2 {[%clk 0:00:37]} 38. Nd4 {[%clk 0:00:11]}  Qb2# {[%clk 0:00:34]} 0-1


[Site "https://www.chess.com"]

[Event "Titled Tuesday Blitz April 05 Early 2022"]
[White "Zhigalko, Sergei"]
[Black "Rozhkov, Viacheslav"]
[WhiteFideId "13502956"]
[BlackFideId "4181484"]
[WhiteElo "2662"]
[BlackElo "2324"]
[Result "1-0"]
[Round "01"]
[TimeControl "180+1"]
[Date "2022.04.05"]
[WhiteClock "0:00:54"]
[BlackClock "0:00:02"]

1. e4 {[%clk 0:02:57]}  c5 {[%clk 0:02:59]} 2. Nf3 {[%clk 0:02:57]}  Nc6 {[%clk 0:02:59]} 3. c3 {[%clk 0:02:55]}  Nf6 {[%clk 0:02:59]} 4. e5 {[%clk 0:02:55]}  Nd5 {[%clk 0:02:58]} 5. Bc4 {[%clk 0:02:55]}  Nb6 {[%clk 0:02:58]} 6. Bb3 {[%clk 0:02:55]}  c4 {[%clk 0:02:58]} 7. Bc2 {[%clk 0:02:55]}  d5 {[%clk 0:02:56]} 8. exd6 {[%clk 0:02:54]}  Qxd6 {[%clk 0:02:56]} 9. O-O {[%clk 0:02:54]}  Bg4 {[%clk 0:02:50]} 10. Re1 {[%clk 0:02:54]}  e6 {[%clk 0:02:50]} 11. b3 {[%clk 0:02:51]}  Be7 {[%clk 0:02:12]} 12. Na3 {[%clk 0:02:51]}  Ne5 {[%clk 0:01:52]} 13. Rxe5 {[%clk 0:02:05]}  Bxf3 {[%clk 0:01:44]} 14. Qe1 {[%clk 0:02:05]}  Bd5 {[%clk 0:01:04]} 15. bxc4 {[%clk 0:01:59]}  Nxc4 {[%clk 0:00:41]} 16. Ba4+ {[%clk 0:01:59]}  Kf8 {[%clk 0:00:39]} 17. Nxc4 {[%clk 0:01:58]}  Bxc4 {[%clk 0:00:39]} 18. d4 {[%clk 0:01:59]}  Bf6 {[%clk 0:00:33]} 19. Rc5 {[%clk 0:01:53]}  b5 {[%clk 0:00:08]} 20. Bxb5 {[%clk 0:01:25]}  Bxb5 {[%clk 0:00:08]} 21. Rxb5 {[%clk 0:01:26]}  h5 {[%clk 0:00:08]} 22. a4 {[%clk 0:01:25]}  Qc7 {[%clk 0:00:04]} 23. Qe4 {[%clk 0:01:18]}  Rc8 {[%clk 0:00:02]} 24. Rc5 {[%clk 0:01:13]}  Qd7 {[%clk 0:00:02]} 25. Ba3 {[%clk 0:01:13]}  Kg8 {[%clk 0:00:02]} 26. h3 {[%clk 0:01:10]}  g6 {[%clk 0:00:02]} 27. Rb1 {[%clk 0:01:06]}  Kg7 {[%clk 0:00:02]} 28. Rb7 {[%clk 0:01:01]}  Qe8 {[%clk 0:00:03]} 29. Rxa7 {[%clk 0:01:00]}  Rb8 {[%clk 0:00:02]} 30. Rcc7 {[%clk 0:00:54]} 1-0


[Site "https://www.chess.com"]